bitfinex-derivatives/quotes_ETHF0:USTF0_20210109
["timestamp","ask_amount","ask_price","bid_price","bid_amount"]
[1610173233088,11.50195284,1182.3,1181.5,50.0]
[1610173233688,11.50195284,1182.3,1181.4,50.0]
[1610173233888,1.8956,1182.3,1181.4,50.0]
[1610173234088,15.83399813,1182.4,1181.4,50.0]
[1610173234288,15.83399813,1182.4,1181.7,4.00959]
[1610173234689,9.60769813,1182.4,1181.7,4.00959]
[1610173234888,6.4515701,1182.5,1181.7,4.00959]
[1610173234889,11.26719923,1182.5,1181.8,50.0]
[1610173235288,4.79536847,1182.6,1181.9,50.0]
[1610173235289,9.61252784,1182.6,1181.9,50.0]
[1610173235490,9.61252784,1182.6,1181.8,52.2308]
[1610173235692,9.61609069,1182.7,1182.0,50.0]
[1610173236092,13.02619606,1182.8,1182.1,50.0]
[1610173236290,3.405,1182.8,1182.6,4.00959]
[1610173236691,3.405,1182.8,1182.7,50.0]
[1610173238093,3.405,1182.8,1182.5,50.0]
[1610173238294,4.00959,1182.6,1182.5,50.0]
[1610173238493,4.00959,1182.6,1182.2,50.0]
[1610173238892,4.00959,1182.6,1182.5,50.0]
[1610173239293,4.00959,1182.6,1182.3,50.0]
[1610173239495,15.80628559,1182.6,1182.3,50.0]
[1610173239693,15.80628559,1182.6,1182.4,50.0]
[1610173240296,15.80628559,1182.6,1182.1,4.00959]
[1610173240696,15.80628559,1182.6,1182.5,50.0]
[1610173240897,15.80628559,1182.6,1182.1,4.00959]
[1610173240898,6.24319,1182.6,1182.2,50.0]
[1610173241394,6.24319,1182.6,1182.5,50.0]
[1610173241593,6.24319,1182.6,1182.2,50.0]
[1610173241794,6.24319,1182.6,1181.7,1.8857]
[1610173241995,6.24319,1182.6,1181.8,50.0]
[1610173241996,15.79032028,1182.6,1181.8,50.0]
[1610173242195,4.00959,1181.9,1181.7,1.8857]
[1610173242596,4.00959,1181.9,1181.8,50.0]
[1610173243411,4.00959,1181.9,1181.2,1.8049]
[1610173243412,10.20276905,1181.9,1181.3,50.0]
[1610173243602,10.20276905,1181.9,1181.6,50.0]
[1610173243803,13.52900889,1181.9,1181.6,50.0]
[1610173244002,13.52900889,1181.9,1181.4,50.0]
[1610173244202,4.00959,1181.5,1181.4,50.0]
[1610173244402,4.00959,1181.5,1180.6,4.00959]
[1610173244803,4.00959,1181.5,1181.4,50.0]
[1610173245002,4.00959,1181.5,1180.6,5.86899]
[1610173245202,4.00959,1181.5,1180.7,68.9852]
[1610173245403,4.00959,1181.5,1181.4,50.0]
[1610173245603,4.00959,1181.5,1180.7,50.0]
[1610173245803,4.00959,1181.5,1180.6,5.86899]
[1610173246006,7.41459,1181.5,1180.8,50.0]
[1610173246204,4.00959,1180.9,1180.8,50.0]
[1610173246403,3.405,1181.5,1180.8,50.0]
[1610173246603,3.405,1181.5,1180.6,5.86899]
[1610173246604,3.405,1181.5,1180.7,50.0]
[1610173246805,3.405,1181.5,1180.9,50.0]
[1610173247204,3.405,1181.5,1180.8,50.0]
[1610173247404,3.405,1181.5,1181.0,50.0]
[1610173247605,3.405,1181.5,1180.6,1.8594]
[1610173247803,3.405,1181.5,1180.9,50.0]
[1610173248005,3.405,1181.5,1181.1,50.0]
[1610173248204,4.00959,1181.2,1181.1,50.0]
[1610173248404,4.00959,1181.2,1180.7,50.0]
[1610173248605,4.00959,1181.2,1181.1,50.0]
[1610173248805,3.405,1181.5,1181.1,50.0]
[1610173249004,3.405,1181.5,1180.7,99.5847]
[1610173249207,3.405,1181.5,1181.2,50.0]
[1610173249404,3.405,1181.5,1180.8,50.0]
[1610173249604,3.405,1181.5,1181.1,2.4992]
[1610173250006,3.405,1181.5,1181.2,50.0]
[1610173250206,8.8957,1182.1,1181.4,53.57899]
[1610173250405,6.20302279,1182.2,1181.4,55.29059]
[1610173250605,12.66104308,1182.4,1181.4,55.29059]
[1610173250606,3.405,1182.4,1181.5,50.0]
[1610173251007,3.405,1182.4,1181.6,50.0]
[1610173251208,3.405,1182.4,1181.5,50.0]
[1610173251610,3.405,1182.4,1181.7,50.0]
[1610173251809,3.405,1182.4,1181.7,51.9759]
[1610173252012,3.405,1182.4,1181.8,50.0]
[1610173252210,4.00959,1181.9,1181.8,50.0]
[1610173252409,4.00959,1181.9,1181.7,1.9759]
[1610173252610,4.00959,1181.9,1181.8,50.0]
[1610173255516,10.19548385,1181.9,1181.8,50.0]
[1610173255714,8.468372,1181.9,1181.7,50.0]
[1610173255915,9.71526825,1181.9,1181.6,50.0]
[1610173256114,5.702598,1181.8,1181.6,50.0]
[1610173256316,4.00959,1181.7,1181.6,50.0]
[1610173256515,10.1872694,1181.7,1181.2,50.0]
[1610173256714,10.1872694,1181.7,1181.6,50.0]
[1610173256915,4.00959,1181.7,1181.6,50.0]
[1610173257115,9.49770115,1181.8,1181.2,50.0]
[1610173257318,6.17677466,1181.9,1181.6,50.0]
[1610173257515,3.31794562,1182.0,1181.6,50.0]
[1610173257516,6.17659903,1182.0,1181.6,50.0]
[1610173257715,6.17659903,1182.0,1181.3,50.0]
[1610173257916,6.17227758,1181.9,1181.3,50.0]
[1610173258114,6.17227758,1181.9,1181.2,50.0]
[1610173258317,4.00959,1181.4,1181.2,50.0]
[1610173258517,4.00959,1181.4,1181.1,6.50879]
[1610173258717,4.00959,1181.4,1181.3,50.0]
[1610173259118,4.00959,1181.4,1181.2,50.0]
[1610173259317,6.17033541,1181.9,1181.1,6.50879]
[1610173259518,9.48581633,1182.0,1181.3,50.0]
[1610173259717,9.48581633,1182.0,1181.2,50.0]
[1610173259918,6.17132965,1182.0,1181.3,50.0]
[1610173260319,4.00959,1181.4,1181.2,50.0]
[1610173260518,4.00959,1181.4,1181.3,50.0]
[1610173260918,4.00959,1181.4,1181.2,50.0]
[1610173261521,4.00959,1181.4,1181.3,50.0]
[1610173261919,4.00959,1181.4,1180.6,1.8594]
[1610173261920,4.00959,1181.4,1180.7,50.0]
[1610173262321,4.00959,1180.8,1180.6,1.8594]
[1610173262522,4.00959,1180.8,1180.3,4.00959]
[1610173262720,4.00959,1180.8,1180.7,50.0]
[1610173262920,4.00959,1180.8,1180.6,1.7564]
[1610173263320,4.00959,1180.8,1180.7,50.0]
[1610173264222,4.00959,1180.8,1180.7,54.00959]
[1610173264423,6.811,1181.4,1180.7,54.00959]
[1610173264822,6.811,1181.4,1180.8,50.0]
[1610173265224,6.811,1181.4,1180.9,50.0]
[1610173265725,6.811,1181.4,1180.8,50.0]
[1610173266122,6.811,1181.4,1181.0,50.0]
[1610173266327,10.82059,1181.4,1181.3,4.00959]
[1610173266528,6.811,1181.4,1181.3,4.00959]
[1610173266928,6.811,1181.4,1181.3,54.00959]
[1610173267127,3.405,1181.8,1181.3,54.00959]
[1610173267728,3.405,1181.8,1181.4,50.0]
[1610173268029,3.405,1181.8,1181.5,50.0]
[1610173268227,3.405,1181.8,1181.7,4.00959]
[1610173269028,3.405,1181.8,1181.7,54.00959]
[1610173272837,12.96549233,1182.7,1181.7,54.00959]
[1610173273235,12.96549233,1182.7,1181.8,50.0]
[1610173273236,3.405,1182.7,1181.8,50.0]
[1610173273436,3.405,1182.7,1181.8,52.2021]
[1610173273635,3.405,1182.7,1181.9,50.0]
[1610173273835,3.405,1182.7,1181.9,89.4555]
[1610173274035,3.405,1182.7,1182.2,67.4785]
[1610173274235,3.405,1182.7,1182.6,4.00959]
[1610173274437,3.405,1182.7,1182.6,5.83989]
[1610173274636,3.405,1182.7,1182.6,55.83989]
[1610173274838,3.405,1182.7,1182.6,64.73959]
[1610173275036,16.40774136,1183.3,1182.6,64.73959]
[1610173275237,6.811,1183.3,1182.6,94.73959]
[1610173275437,9.60278343,1183.4,1182.6,94.73959]
[1610173275639,3.405,1183.5,1182.7,50.0]
[1610173275837,3.405,1183.5,1182.8,30.0]
[1610173276039,4.79807153,1183.7,1182.9,56.3963]
[1610173276040,9.62472502,1183.7,1182.9,56.3963]
[1610173276238,9.62472502,1183.7,1183.0,80.0]
[1610173276440,9.63603448,1183.9,1183.6,4.00959]
[1610173276637,9.61201645,1183.9,1183.6,5.98869]
[1610173276840,14.45483358,1184.1,1183.6,5.98869]
[1610173277041,11.00048772,1184.2,1183.6,5.98869]
[1610173277042,14.45802405,1184.2,1183.6,35.98869]
[1610173277239,14.45802405,1184.2,1183.7,50.0]
[1610173277439,14.67089187,1184.3,1183.7,50.0]
[1610173277440,17.87128836,1184.3,1183.8,30.0]
[1610173277639,17.87128836,1184.3,1183.8,80.0]
[1610173277840,9.65616186,1184.4,1183.9,103.2259]
[1610173278040,4.81845366,1184.5,1183.9,103.2259]
[1610173278041,9.66215585,1184.5,1184.0,30.0]
[1610173278441,14.48947354,1184.7,1184.4,4.00959]
[1610173278640,14.48947354,1184.7,1184.4,6.48509]
[1610173278841,9.6660738,1184.7,1184.4,56.48509]
[1610173279041,14.49531421,1184.8,1184.4,56.48509]
[1610173279242,14.49531421,1184.8,1184.5,50.0]
[1610173279642,14.49531421,1184.8,1184.6,50.0]
[1610173279841,9.67038687,1184.7,1184.5,50.0]
[1610173280041,9.67038687,1184.7,1184.4,6.48509]
[1610173280242,14.49641745,1184.7,1184.4,6.48509]
[1610173280441,14.49641745,1184.7,1184.6,4.00959]
[1610173280642,9.67038687,1184.7,1184.6,4.00959]
[1610173280844,14.49840952,1184.7,1184.6,54.00959]
[1610173281243,4.82802265,1184.7,1184.6,54.00959]
[1610173281643,4.82802265,1184.7,1184.6,50.0]
[1610173281843,6.7534555,1184.7,1184.6,50.0]
[1610173282344,12.68786144,1184.7,1184.6,50.0]
[1610173282744,15.24936179,1184.7,1184.6,50.0]
[1610173282944,17.18105041,1184.7,1184.6,50.0]
[1610173283145,18.87885041,1184.7,1184.6,50.0]
[1610173283347,15.25589156,1184.7,1184.6,50.0]
[1610173283946,11.24630156,1184.7,1184.6,50.0]
[1610173284146,2.56150035,1184.7,1184.6,50.0]
[1610173284345,2.56150035,1184.7,1184.6,54.00959]
[1610173284545,9.33106381,1184.7,1184.6,54.00959]
[1610173284747,14.53601004,1184.7,1184.6,54.00959]
[1610173285147,4.83889127,1184.7,1184.6,54.00959]
[1610173285547,14.53598324,1184.7,1184.6,54.00959]
[1610173285949,14.53829605,1184.8,1184.6,54.00959]
[1610173286348,9.7122603,1184.9,1184.7,50.0]
[1610173286549,14.56051823,1185.0,1184.7,50.0]
[1610173286947,14.56105195,1184.9,1184.8,50.0]
[1610173287349,14.56105195,1184.9,1184.7,50.0]
[1610173287547,14.56105195,1184.9,1184.8,50.0]
[1610173287747,6.7833321,1184.9,1184.8,50.0]
[1610173287948,11.31280264,1184.9,1184.6,50.0]
[1610173288148,11.31280264,1184.9,1184.8,50.0]
[1610173288349,10.66322505,1184.9,1184.8,50.0]
[1610173288549,10.66322505,1184.9,1184.5,2.3855]
[1610173288550,14.67281505,1184.9,1184.7,50.0]
[1610173288749,6.59903005,1184.9,1184.7,50.0]
[1610173288949,6.59903005,1184.9,1184.6,50.0]
[1610173289149,2.65710807,1184.8,1184.6,50.0]
[1610173289349,2.65710807,1184.8,1184.3,50.0]
[1610173289550,10.65690815,1184.7,1184.3,50.0]
[1610173289749,10.65690815,1184.7,1183.6,71.1701]
[1610173289954,8.71638421,1184.4,1183.7,50.0]
[1610173290349,8.71638421,1184.4,1183.6,1.9791]
[1610173290350,14.5480605,1184.0,1183.8,50.0]
[1610173290749,14.5480605,1184.0,1183.7,50.0]
[1610173290951,14.54271521,1183.8,1182.2,0.2582156]
[1610173291151,17.94771521,1183.8,1183.6,50.0]
[1610173291350,3.405,1183.8,1183.6,50.0]
[1610173291549,7.49015088,1183.7,1183.4,50.0]
[1610173291749,7.49015088,1183.7,1183.5,50.0]
[1610173291952,6.76823797,1183.6,1183.5,50.0]
[1610173292252,8.69479685,1183.6,1183.4,50.0]
[1610173292452,4.00959,1183.5,1183.4,50.0]
[1610173292652,4.00959,1183.5,1182.9,1.8769]
[1610173292856,10.77305228,1183.5,1183.4,50.0]
[1610173293253,10.77305228,1183.5,1182.9,1.8769]
[1610173293254,4.93126986,1183.4,1182.9,1.8769]
[1610173293455,9.68313814,1183.2,1183.1,50.0]
[1610173293857,9.68313814,1183.2,1182.3,56.7266]
[1610173293858,9.67864229,1183.1,1182.3,56.7266]
[1610173294051,9.67864229,1183.1,1182.7,50.0]
[1610173294453,14.50193261,1183.0,1182.8,50.0]
[1610173294856,14.49318936,1182.9,1182.8,50.0]
[1610173295255,6.75134514,1182.9,1182.8,50.0]
[1610173295455,6.75134514,1182.9,1182.6,50.0]
[1610173295653,11.28972891,1182.9,1182.8,50.0]
[1610173295853,11.28972891,1182.9,1182.7,50.0]
[1610173296054,4.2886673,1182.9,1182.7,50.0]
[1610173296253,2.6160673,1182.9,1182.2,50.0]
[1610173296454,14.51361182,1182.9,1182.8,50.0]
[1610173296653,14.51361182,1182.9,1182.5,6.07979]
[1610173296853,15.26228253,1183.2,1182.5,6.07979]
[1610173296854,6.76742072,1183.2,1182.5,6.07979]
[1610173297054,14.53229766,1183.2,1182.8,50.0]
[1610173297253,14.53229766,1183.2,1182.8,1.7102]
[1610173297454,14.54618785,1183.3,1182.8,1.7102]
[1610173297656,14.54618785,1183.3,1182.9,50.0]
[1610173297854,14.55356923,1183.4,1183.0,50.0]
[1610173298054,1.1615752,1183.4,1183.0,50.0]
[1610173298256,4.94413975,1183.5,1183.0,50.0]
[1610173298458,14.56938852,1183.6,1183.3,4.00959]
[1610173298656,14.56938852,1183.6,1183.3,6.21149]
[1610173298858,12.13112861,1183.8,1183.3,6.21149]
[1610173298859,17.98555221,1183.8,1183.3,6.21149]
[1610173299057,17.98555221,1183.8,1183.4,50.0]
[1610173299464,17.98555221,1183.8,1183.5,50.0]
[1610173299663,17.98555221,1183.8,1183.4,50.0]
[1610173300063,17.98555221,1183.8,1183.5,50.0]
[1610173300464,4.00959,1183.6,1183.4,50.0]
[1610173300664,4.00959,1183.6,1183.5,50.0]
[1610173301264,14.60013394,1183.7,1183.4,50.0]
[1610173301666,18.0039953,1183.8,1183.5,50.0]
[1610173301865,18.0039953,1183.8,1183.6,50.0]
[1610173302066,18.0039953,1183.8,1183.6,52.3977]
[1610173302264,18.0039953,1183.8,1183.6,2.3977]
[1610173302464,7.41459,1183.8,1183.7,4.00959]
[1610173302665,7.41459,1183.8,1183.7,54.00959]
[1610173303066,3.405,1183.8,1183.7,54.00959]
[1610173303466,14.60365481,1184.0,1183.7,54.00959]
[1610173303667,14.60915733,1184.1,1183.7,54.00959]
[1610173304069,14.60915733,1184.1,1183.8,50.0]
[1610173304267,14.6153867,1184.2,1183.8,50.0]
[1610173304466,14.6153867,1184.2,1184.1,4.00959]
[1610173304669,14.63015874,1184.3,1184.1,5.94079]
[1610173305067,25.47279515,1184.5,1184.2,50.0]
[1610173305267,21.46320515,1184.5,1184.2,50.0]
[1610173305470,14.64152856,1184.5,1184.3,50.0]
[1610173305668,24.89022283,1184.6,1184.3,50.0]
[1610173305867,24.89022283,1184.6,1184.2,50.0]
[1610173306069,21.49721763,1184.7,1184.2,50.0]
[1610173306268,14.66473081,1184.7,1184.4,50.0]
[1610173306470,14.66473081,1184.7,1184.6,4.00959]
[1610173306669,25.51646019,1184.8,1184.6,4.00959]
[1610173307169,14.67822718,1184.7,1184.6,4.00959]
[1610173307369,14.67822718,1184.7,1184.4,2.4918]
[1610173307569,14.67822718,1184.7,1184.5,50.0]
[1610173307871,14.67943402,1184.6,1184.5,50.0]
[1610173308071,14.67943402,1184.6,1184.4,2.4918]
[1610173308271,6.84029026,1184.6,1184.4,2.4918]
[1610173308471,6.84029026,1184.6,1184.5,50.0]
[1610173308671,10.74109856,1184.6,1184.5,50.0]
[1610173308875,10.74109856,1184.6,1184.4,50.0]
[1610173309072,14.645178,1185.0,1184.1,51.9312]
[1610173309073,12.69516293,1184.7,1184.1,51.9312]
[1610173309272,14.72436293,1184.7,1184.1,50.0]
[1610173309472,12.70353908,1184.5,1183.9,50.0]
[1610173309672,12.70270038,1184.3,1184.1,50.0]
[1610173310072,12.71671192,1184.4,1184.1,50.0]
[1610173310272,12.71671192,1184.4,1183.4,63.3506]
[1610173310472,12.71671192,1184.4,1184.2,50.0]
[1610173310675,12.71671192,1184.4,1183.7,4.00959]
[1610173310873,12.71671192,1184.4,1184.3,50.0]
[1610173311273,12.71671192,1184.4,1183.9,50.0]
[1610173311472,12.71671192,1184.4,1182.9,52.3016]
[1610173311473,14.32711192,1184.4,1182.9,52.3016]
[1610173311674,16.29545054,1184.4,1183.3,50.0]
[1610173311874,21.56020419,1183.5,1183.2,50.0]
[1610173312273,21.56020419,1183.5,1183.4,50.0]
[1610173312274,8.80099698,1183.5,1183.4,50.0]
[1610173312473,12.81058698,1183.5,1183.3,50.0]
[1610173313073,12.81058698,1183.5,1182.6,2.1399]
[1610173313074,2.72679336,1183.4,1182.6,2.1399]
[1610173313276,13.48237521,1183.4,1182.6,2.1399]
[1610173313473,13.48237521,1183.4,1182.7,50.0]
[1610173313674,4.00959,1183.5,1182.7,50.0]
[1610173313675,14.69360388,1183.0,1182.7,50.0]
[1610173313873,14.69360388,1183.0,1182.8,50.0]
[1610173314076,14.70189505,1182.9,1182.8,50.0]
[1610173314273,14.70189505,1182.9,1182.7,50.0]
[1610173314474,6.84870206,1182.9,1182.8,50.0]
[1610173314673,6.84870206,1182.9,1182.3,2.1807]
[1610173314873,61.1152,1182.6,1182.3,2.1807]
[1610173315073,61.1152,1182.6,1182.3,52.1807]
[1610173315074,75.81590286,1182.6,1182.3,52.1807]
[1610173315476,14.69515426,1182.4,1182.3,2.1807]
[1610173315674,14.69515426,1182.4,1181.9,50.0]
[1610173315876,6.84559502,1182.4,1181.9,50.0]
[1610173316076,68.64495469,1182.2,1181.1,50.0]
[1610173316274,52.4383,1181.7,1181.1,50.0]
[1610173316474,52.4383,1181.7,1180.4,0.77555939]
[1610173316475,52.4383,1181.7,1180.4,0.25857617]
[1610173316674,4.00959,1181.2,1180.7,54.00959]
[1610173317074,14.69837548,1181.9,1180.7,4.00959]
[1610173317274,8.8051269,1182.0,1180.8,50.0]
[1610173317675,14.71686961,1181.9,1180.8,50.0]
[1610173317874,21.58858832,1182.1,1180.9,50.0]
[1610173318275,14.72706104,1182.1,1181.0,50.0]
[1610173318477,14.72706104,1182.1,1181.0,52.1634]
[1610173318676,4.00959,1181.7,1181.5,4.00959]
[1610173319075,4.00959,1181.7,1181.6,50.0]
[1610173319277,4.00959,1181.7,1181.6,52.5346]
[1610173320977,21.56392863,1182.3,1181.6,52.5346]
[1610173321378,21.56392863,1182.3,1181.7,50.0]
[1610173321579,2.80808405,1182.4,1181.6,2.5346]
[1610173321580,14.70352409,1182.5,1181.8,50.0]
[1610173321979,26.70505935,1182.6,1181.7,50.0]
[1610173322378,26.70505935,1182.6,1181.8,50.0]
[1610173322379,12.0,1182.6,1181.8,50.0]
[1610173322583,12.0,1182.6,1182.5,4.00959]
[1610173322978,12.0,1182.6,1182.5,54.00959]
[1610173323380,12.0,1182.6,1182.5,55.63289]
[1610173324178,12.0,1182.6,1182.5,51.6233]
[1610173324578,16.00959,1182.6,1182.5,51.6233]
[1610173324978,16.00959,1182.6,1182.4,50.0]
[1610173325378,14.74695308,1182.5,1182.3,50.0]
[1610173325779,14.74435101,1182.4,1182.3,50.0]
[1610173325977,14.74435101,1182.4,1181.6,2.5346]
[1610173325978,14.74435101,1182.4,1182.2,50.0]
[1610173326180,2.81737236,1182.4,1182.2,50.0]
[1610173326378,13.61219183,1182.4,1181.7,50.0]
[1610173326579,4.00959,1181.8,1181.7,50.0]
[1610173326779,4.00959,1181.8,1181.6,2.5346]
[1610173326979,4.00959,1181.8,1181.7,50.0]
[1610173327380,4.00959,1181.8,1181.5,1.8431]
[1610173327580,4.00959,1181.8,1181.7,50.0]
[1610173327980,4.00959,1181.8,1181.6,50.0]
[1610173328179,4.00959,1181.8,1181.7,50.0]
[1610173328580,4.00959,1181.8,1181.6,50.0]
[1610173328980,4.00959,1181.8,1181.7,50.0]
[1610173329179,14.76431646,1182.3,1181.6,50.0]
[1610173329380,14.76431646,1182.3,1181.8,50.0]
[1610173329579,21.67027122,1182.4,1181.8,52.3451]
[1610173329779,21.67027122,1182.4,1181.8,2.3451]
[1610173329979,14.79039921,1182.3,1181.8,2.3451]
[1610173330182,21.6823896,1182.3,1181.9,50.0]
[1610173330579,21.6823896,1182.3,1182.0,50.0]
[1610173330879,14.79039921,1182.3,1181.9,50.0]
[1610173331279,14.79039921,1182.3,1182.1,50.0]
[1610173331481,21.67606891,1182.4,1182.1,50.0]
[1610173331679,21.67606891,1182.4,1181.9,50.0]
[1610173331881,14.78265815,1182.3,1182.2,50.0]
[1610173332079,11.66505496,1182.3,1182.2,50.0]
[1610173332279,11.66505496,1182.3,1182.0,50.0]
[1610173332480,13.6195742,1182.3,1181.9,50.0]
[1610173332680,4.00959,1182.0,1181.9,50.0]
[1610173332879,4.00959,1182.0,1181.8,50.0]
[1610173333279,21.60622068,1181.9,1181.8,50.0]
[1610173333479,21.60622068,1181.9,1181.5,1.8431]
[1610173333679,21.60622068,1181.9,1180.2,0.25859472]
[1610173333879,13.10621921,1181.7,1181.6,50.0]
[1610173334081,14.72185326,1181.7,1181.1,50.0]
[1610173334279,69.6036,1181.6,1180.1,0.25862869]
[1610173334480,69.6036,1181.6,1181.5,50.0]
[1610173334680,96.53493354,1181.6,1181.5,50.0]
[1610173334881,28.60523354,1181.6,1181.5,50.0]
[1610173335081,11.79740576,1181.6,1181.5,50.0]
[1610173335481,25.59918113,1181.6,1181.5,50.0]
[1610173336181,18.73733512,1181.6,1181.5,50.0]
[1610173336382,21.62226649,1181.8,1181.5,50.0]
[1610173336582,21.62226649,1181.8,1181.7,4.00959]
[1610173336781,14.75003524,1181.8,1181.7,4.00959]
[1610173336981,14.75003524,1181.8,1181.7,50.0]
[1610173337181,8.83616916,1182.0,1181.7,50.0]
[1610173337182,14.76749057,1182.0,1181.7,50.0]
[1610173337584,14.76749057,1182.0,1181.8,50.0]
[1610173337783,21.66115305,1182.2,1181.8,50.0]
[1610173338082,21.67163184,1182.3,1181.7,50.0]
[1610173338282,21.67163184,1182.3,1181.6,2.1969]
[1610173338483,13.92959386,1182.4,1181.9,50.0]
[1610173338484,26.75490576,1182.4,1181.9,50.0]
[1610173338683,4.00959,1182.3,1182.2,4.00959]
[1610173338884,3.405,1182.4,1182.2,4.00959]
[1610173339086,3.405,1182.4,1182.3,50.0]
[1610173339282,33.72785593,1182.6,1182.3,50.0]
[1610173339484,12.0,1182.6,1182.2,2.4387]
[1610173339884,21.73796475,1182.5,1182.2,2.4387]
[1610173340084,21.73796475,1182.5,1182.2,50.0]
[1610173340285,8.87109448,1182.3,1182.2,50.0]
[1610173340685,12.88068448,1182.3,1181.6,2.1969]
[1610173341086,12.88068448,1182.3,1182.2,50.0]
[1610173341285,8.87109448,1182.3,1181.7,50.0]
[1610173341485,8.87109448,1182.3,1181.6,69.568]
[1610173341688,21.76238661,1182.4,1182.2,50.0]
[1610173341885,21.76238661,1182.4,1182.0,2.5009]
[1610173342086,25.17967699,1182.5,1182.0,2.5009]
[1610173342286,25.17967699,1182.5,1182.3,50.0]
[1610173342490,25.17967699,1182.5,1182.0,2.5009]
[1610173342688,3.405,1182.5,1182.4,4.00959]
[1610173342887,3.405,1182.5,1182.4,54.00959]
[1610173344490,12.0,1182.6,1182.4,50.0]
[1610173344688,4.00959,1182.5,1182.4,50.0]
[1610173344888,4.00959,1182.5,1182.3,2.3455]
[1610173345088,5.71049,1182.5,1182.4,50.0]
[1610173345288,4.00959,1182.5,1182.4,50.0]
[1610173346089,25.79697414,1182.5,1182.4,50.0]
[1610173346288,5.72469,1182.5,1182.4,50.0]
[1610173346489,17.45973198,1182.5,1182.4,50.0]
[1610173346690,17.71596955,1182.5,1182.3,50.0]
[1610173347090,11.82918637,1182.5,1182.2,50.0]
[1610173347291,11.82918637,1182.5,1182.0,52.5009]
[1610173347594,10.86437813,1182.3,1182.0,2.5009]
[1610173347791,15.66514948,1182.4,1182.1,50.0]
[1610173347992,15.66514948,1182.4,1182.0,50.0]
[1610173348192,12.81602455,1182.3,1181.8,50.0]
[1610173348593,2.83379005,1182.4,1181.7,50.0]
[1610173348594,12.87285822,1181.9,1181.7,50.0]
[1610173348791,14.43285168,1181.9,1181.4,4.00959]
[1610173348992,25.71281979,1181.9,1181.4,4.00959]
[1610173349191,4.00959,1181.9,1181.5,50.0]
[1610173349591,4.00959,1181.9,1181.6,50.0]
[1610173349791,4.00959,1181.9,1181.6,51.7672]
[1610173349991,4.00959,1181.9,1181.6,1.7672]
[1610173350392,4.00959,1181.9,1181.7,50.0]
[1610173350792,4.00959,1181.9,1181.8,50.0]
[1610173350993,25.72988068,1181.9,1181.8,50.0]
[1610173351192,5.68919,1181.9,1181.7,50.0]
[1610173351392,21.73091053,1182.0,1181.7,50.0]
[1610173351593,21.73091053,1182.0,1181.8,50.0]
[1610173351793,21.73091053,1182.0,1181.7,50.0]
[1610173351995,21.7365055,1182.1,1181.7,50.0]
[1610173352193,8.88099963,1182.2,1181.9,50.0]
[1610173352194,21.74177943,1182.2,1181.9,50.0]
[1610173352393,21.74177943,1182.2,1181.7,50.0]
[1610173352795,21.74177943,1182.2,1181.6,1.7672]
[1610173352796,4.00959,1181.9,1181.6,1.7672]
[1610173352996,4.00959,1181.9,1181.8,50.0]
[1610173353396,4.00959,1181.9,1181.6,1.7672]
[1610173353596,4.00959,1181.9,1181.8,50.0]
[1610173353797,25.75138664,1181.9,1181.8,50.0]
[1610173353996,25.75138664,1181.9,1181.6,1.7672]
[1610173354396,25.75138664,1181.9,1181.8,50.0]
[1610173354598,25.75138664,1181.9,1181.7,50.0]
[1610173354796,27.46838664,1181.9,1181.6,1.7672]
[1610173354995,27.46838664,1181.9,1181.3,1.8677]
[1610173354996,27.46838664,1181.9,1181.8,50.0]
[1610173355196,25.75138664,1181.9,1181.7,50.0]
[1610173355399,21.78560073,1181.8,1181.3,1.8677]
[1610173355797,21.78560073,1181.8,1181.7,50.0]
[1610173355996,21.78560073,1181.8,1181.4,50.0]
[1610173356196,21.78560073,1181.8,1181.7,50.0]
[1610173356600,49.1857,1181.6,1181.5,50.0]
[1610173356798,49.1857,1181.6,1181.0,2.0094]
[1610173356999,57.00715866,1181.6,1181.0,2.0094]
[1610173357199,57.00715866,1181.6,1181.5,50.0]
[1610173357400,60.06212495,1181.6,1181.1,50.0]
[1610173357599,60.06212495,1181.6,1181.0,2.0094]
[1610173357802,67.88396316,1181.6,1181.5,50.0]
[1610173358004,16.73071802,1181.5,1181.2,50.0]
[1610173358202,16.73071802,1181.5,1180.6,2.3871]
[1610173358401,8.90971422,1181.4,1180.6,2.3871]
[1610173358601,8.90971422,1181.4,1180.7,50.0]
[1610173358803,4.00959,1180.8,1180.7,54.00959]
[1610173359004,10.62591422,1181.4,1180.7,4.00959]
[1610173359404,10.62591422,1181.4,1180.8,50.0]
[1610173359606,21.79033695,1181.4,1180.8,50.0]
[1610173360004,21.79033695,1181.4,1180.9,50.0]
[1610173360204,21.79033695,1181.4,1180.8,50.0]
[1610173360405,21.79374451,1181.5,1180.8,50.0]
[1610173360604,21.79374451,1181.5,1180.7,4.00959]
[1610173360605,21.79513676,1181.6,1181.0,50.0]
[1610173360804,25.80472676,1181.6,1181.3,4.00959]
[1610173361005,4.00959,1181.6,1181.0,2.127]
[1610173361205,4.00959,1181.6,1181.4,50.0]
[1610173361606,4.00959,1181.6,1181.1,50.0]
[1610173361806,4.00959,1181.6,1181.2,50.0]
[1610173362005,5.71279,1181.6,1181.2,50.0]
[1610173362205,4.00959,1181.6,1181.1,50.0]
[1610173362408,4.00959,1181.6,1181.3,50.0]
[1610173362807,4.00959,1181.4,1181.3,4.00959]